[Event "Titled Tuesday Blitz December 27 Early 2022"]
[White "gshwbedhkhd"]
[Black "Rengifo Blancas, Renzo Jhonathan"]
[BlackFideId "3807185"]
[WhiteElo "2577"]
[BlackElo "2131"]
[Result "1/2-1/2"]
[Round "03"]
[TimeControl "180+2"]
[Date "2022.12.27"]
[WhiteClock "0:00:17"]
[BlackClock "0:00:13"]

1. e4 {[%clk 0:03:00]}  e5 {[%clk 0:02:59]} 2. Nf3 {[%clk 0:02:57]}  Nc6 {[%clk 0:03:00]} 3. Nc3 {[%clk 0:02:56]}  Nf6 {[%clk 0:02:58]} 4. a3 {[%clk 0:02:56]}  a6 {[%clk 0:02:58]} 5. d4 {[%clk 0:02:54]}  exd4 {[%clk 0:02:58]} 6. Nxd4 {[%clk 0:02:55]}  d5 {[%clk 0:02:57]} 7. exd5 {[%clk 0:02:47]}  Nxd5 {[%clk 0:02:56]} 8. Nxc6 {[%clk 0:02:47]}  bxc6 {[%clk 0:02:55]} 9. Qf3 {[%clk 0:02:40]}  Bd6 {[%clk 0:02:42]} 10. Bd3 {[%clk 0:02:20]}  Qe7+ {[%clk 0:02:33]} 11. Ne2 {[%clk 0:02:15]}  O-O {[%clk 0:02:25]} 12. O-O {[%clk 0:02:14]}  Qh4 {[%clk 0:02:17]} 13. g3 {[%clk 0:02:13]}  Qh3 {[%clk 0:02:16]} 14. Nd4 {[%clk 0:02:10]}  Bg4 {[%clk 0:02:01]} 15. Qg2 {[%clk 0:02:07]}  c5 {[%clk 0:01:44]} 16. Nf3 {[%clk 0:01:40]}  Rfe8 {[%clk 0:01:00]} 17. Ng5 {[%clk 0:01:37]}  Qxg2+ {[%clk 0:00:58]} 18. Kxg2 {[%clk 0:01:37]}  h6 {[%clk 0:00:55]} 19. Ne4 {[%clk 0:01:30]}  Nb6 {[%clk 0:00:38]} 20. f3 {[%clk 0:01:18]}  Bd7 {[%clk 0:00:36]} 21. b3 {[%clk 0:01:06]}  Bc6 {[%clk 0:00:35]} 22. Be3 {[%clk 0:00:47]}  Be5 {[%clk 0:00:25]} 23. Rae1 {[%clk 0:00:41]}  c4 {[%clk 0:00:08]} 24. bxc4 {[%clk 0:00:38]}  Na4 {[%clk 0:00:03]} 25. Nc5 {[%clk 0:00:29]}  Nxc5 {[%clk 0:00:02]} 26. Bxc5 {[%clk 0:00:30]}  Bc3 {[%clk 0:00:02]} 27. Rxe8+ {[%clk 0:00:27]}  Rxe8 {[%clk 0:00:03]} 28. Kf2 {[%clk 0:00:27]}  g5 {[%clk 0:00:03]} 29. Rb1 {[%clk 0:00:24]}  f5 {[%clk 0:00:02]} 30. Bxf5 {[%clk 0:00:22]}  Re5 {[%clk 0:00:02]} 31. Rb8+ {[%clk 0:00:17]}  Kf7 {[%clk 0:00:02]} 32. Rf8+ {[%clk 0:00:13]}  Kg7 {[%clk 0:00:02]} 33. Rc8 {[%clk 0:00:08]}  Rxc5 {[%clk 0:00:02]} 34. Rxc7+ {[%clk 0:00:08]}  Kf6 {[%clk 0:00:02]} 35. Bg4 {[%clk 0:00:06]}  Rxc4 {[%clk 0:00:02]} 36. Ke3 {[%clk 0:00:06]}  Be5 {[%clk 0:00:01]} 37. Kd3 {[%clk 0:00:06]}  Rc5 {[%clk 0:00:02]} 38. Rc8 {[%clk 0:00:05]}  Bb5+ {[%clk 0:00:02]} 39. Ke4 {[%clk 0:00:05]}  Rxc8 {[%clk 0:00:02]} 40. Bxc8 {[%clk 0:00:06]}  Bc3 {[%clk 0:00:02]} 41. f4 {[%clk 0:00:06]}  Bf1 {[%clk 0:00:02]} 42. Ke3 {[%clk 0:00:03]}  Bg2 {[%clk 0:00:02]} 43. Bxa6 {[%clk 0:00:03]}  Ba5 {[%clk 0:00:03]} 44. Bd3 {[%clk 0:00:02]}  Bb6+ {[%clk 0:00:03]} 45. Ke2 {[%clk 0:00:03]}  gxf4 {[%clk 0:00:04]} 46. gxf4 {[%clk 0:00:04]}  Bc7 {[%clk 0:00:04]} 47. f5 {[%clk 0:00:04]}  Bb7 {[%clk 0:00:05]} 48. Ke3 {[%clk 0:00:04]}  Bxh2 {[%clk 0:00:04]} 49. a4 {[%clk 0:00:03]}  Bg1+ {[%clk 0:00:05]} 50. Kf4 {[%clk 0:00:03]}  Bb6 {[%clk 0:00:05]} 51. c3 {[%clk 0:00:02]}  Ba5 {[%clk 0:00:05]} 52. c4 {[%clk 0:00:02]}  Bc6 {[%clk 0:00:06]} 53. Bc2 {[%clk 0:00:03]}  Bd7 {[%clk 0:00:06]} 54. Be4 {[%clk 0:00:02]}  Bxa4 {[%clk 0:00:06]} 55. c5 {[%clk 0:00:02]}  Bd7 {[%clk 0:00:06]} 56. c6 {[%clk 0:00:02]}  Bc8 {[%clk 0:00:06]} 57. Bd5 {[%clk 0:00:02]}  Bc7+ {[%clk 0:00:07]} 58. Kg4 {[%clk 0:00:02]}  Ke5 {[%clk 0:00:07]} 59. Be6 {[%clk 0:00:01]}  Ba6 {[%clk 0:00:04]} 60. Kh5 {[%clk 0:00:01]}  Kf6 {[%clk 0:00:03]} 61. Kxh6 {[%clk 0:00:02]}  Bb5 {[%clk 0:00:03]} 62. Kh7 {[%clk 0:00:02]}  Bxc6 {[%clk 0:00:04]} 63. Kg8 {[%clk 0:00:02]}  Be4 {[%clk 0:00:04]} 64. Kh7 {[%clk 0:00:03]}  Be5 {[%clk 0:00:05]} 65. Kg8 {[%clk 0:00:03]}  Bf3 {[%clk 0:00:05]} 66. Kh7 {[%clk 0:00:03]}  Bh5 {[%clk 0:00:05]} 67. Kg8 {[%clk 0:00:04]}  Bd6 {[%clk 0:00:06]} 68. Kh7 {[%clk 0:00:05]}  Be8 {[%clk 0:00:06]} 69. Kg8 {[%clk 0:00:05]}  Kg5 {[%clk 0:00:06]} 70. Kh7 {[%clk 0:00:05]}  Bh5 {[%clk 0:00:07]} 71. Kg8 {[%clk 0:00:05]}  Be5 {[%clk 0:00:07]} 72. Kh7 {[%clk 0:00:06]}  Bf6 {[%clk 0:00:08]} 73. Bc8 {[%clk 0:00:06]}  Bg4 {[%clk 0:00:07]} 74. Be6 {[%clk 0:00:06]}  Bf3 {[%clk 0:00:07]} 75. Bd7 {[%clk 0:00:06]}  Bd5 {[%clk 0:00:08]} 76. Be6 {[%clk 0:00:06]}  Bc6 {[%clk 0:00:08]} 77. Bc8 {[%clk 0:00:06]}  Be8 {[%clk 0:00:08]} 78. Be6 {[%clk 0:00:07]}  Kh5 {[%clk 0:00:08]} 79. Bc8 {[%clk 0:00:07]}  Bf7 {[%clk 0:00:09]} 80. Be6 {[%clk 0:00:08]}  Be8 {[%clk 0:00:09]} 81. Bc8 {[%clk 0:00:08]}  Kg5 {[%clk 0:00:10]} 82. Be6 {[%clk 0:00:09]}  Be7 {[%clk 0:00:10]} 83. Bc8 {[%clk 0:00:09]}  Kf6 {[%clk 0:00:10]} 84. Be6 {[%clk 0:00:10]}  Bh5 {[%clk 0:00:10]} 85. Bc8 {[%clk 0:00:10]}  Bf3 {[%clk 0:00:10]} 86. Be6 {[%clk 0:00:10]}  Be4 {[%clk 0:00:10]} 87. Bc8 {[%clk 0:00:11]}  Bd5 {[%clk 0:00:10]} 88. Be6 {[%clk 0:00:11]}  Bb7 {[%clk 0:00:10]} 89. Bd7 {[%clk 0:00:11]}  Bf8 {[%clk 0:00:10]} 90. Be6 {[%clk 0:00:11]}  Bd6 {[%clk 0:00:10]} 91. Bd7 {[%clk 0:00:11]}  Be5 {[%clk 0:00:11]} 92. Be6 {[%clk 0:00:12]}  Ke7 {[%clk 0:00:11]} 93. Kg6 {[%clk 0:00:11]}  Bf6 {[%clk 0:00:11]} 94. Kh7 {[%clk 0:00:12]}  Bf3 {[%clk 0:00:11]} 95. Kg6 {[%clk 0:00:13]}  Bg4 {[%clk 0:00:11]} 96. Kh7 {[%clk 0:00:13]}  Bh5 {[%clk 0:00:11]} 97. Bc8 {[%clk 0:00:13]}  Be8 {[%clk 0:00:11]} 98. Be6 {[%clk 0:00:13]}  Bh5 {[%clk 0:00:11]} 99. Bc8 {[%clk 0:00:13]}  Bg5 {[%clk 0:00:11]} 100. Be6 {[%clk 0:00:12]}  Kf6 {[%clk 0:00:12]} 101. Kg8 {[%clk 0:00:12]}  Be8 {[%clk 0:00:12]} 102. Kh7 {[%clk 0:00:13]}  Bf4 {[%clk 0:00:11]} 103. Kg8 {[%clk 0:00:13]}  Be5 {[%clk 0:00:12]} 104. Kh7 {[%clk 0:00:14]}  Bc6 {[%clk 0:00:11]} 105. Kg8 {[%clk 0:00:15]}  Bf3 {[%clk 0:00:12]} 106. Kh7 {[%clk 0:00:15]}  Bg4 {[%clk 0:00:12]} 107. Kg8 {[%clk 0:00:15]}  Bh5 {[%clk 0:00:12]} 108. Kh7 {[%clk 0:00:16]}  Be8 {[%clk 0:00:12]} 109. Bc8 {[%clk 0:00:16]}  Ke7 {[%clk 0:00:13]} 110. Be6 {[%clk 0:00:16]}  Kf8 {[%clk 0:00:12]} 111. Bc8 {[%clk 0:00:16]}  Bf4 {[%clk 0:00:13]} 112. Be6 {[%clk 0:00:17]}  Bd6 {[%clk 0:00:13]} 1/2-1/2


[Site "https://www.chess.com"]

[Event "Titled Tuesday Blitz December 27 Early 2022"]
[White "Adel, Sara"]
[Black "Manon-og, Ramon Jr."]
[WhiteFideId "10616764"]
[BlackFideId "5200776"]
[WhiteElo "1739"]
[BlackElo "1999"]
[Result "1-0"]
[Round "04"]
[TimeControl "180+2"]
[Date "2022.12.27"]
[WhiteClock "0:02:34"]
[BlackClock "0:01:57"]

1. e4 {[%clk 0:03:00]}  e5 {[%clk 0:03:00]} 2. Nf3 {[%clk 0:03:00]}  Nf6 {[%clk 0:03:00]} 3. Nc3 {[%clk 0:02:59]}  Bc5 {[%clk 0:02:59]} 4. Bc4 {[%clk 0:02:58]}  Nc6 {[%clk 0:02:56]} 5. d3 {[%clk 0:02:58]}  O-O {[%clk 0:02:51]} 6. Qe2 {[%clk 0:02:58]}  Ng4 {[%clk 0:02:49]} 7. O-O {[%clk 0:02:56]}  d6 {[%clk 0:02:45]} 8. h3 {[%clk 0:02:56]}  Nf6 {[%clk 0:02:43]} 9. Bg5 {[%clk 0:02:50]}  h6 {[%clk 0:02:39]} 10. Bh4 {[%clk 0:02:50]}  g5 {[%clk 0:02:39]} 11. Nxg5 {[%clk 0:02:48]}  hxg5 {[%clk 0:02:39]} 12. Bxg5 {[%clk 0:02:49]}  Nd4 {[%clk 0:02:35]} 13. Qd2 {[%clk 0:02:44]}  Nf5 {[%clk 0:02:36]} 14. exf5 {[%clk 0:02:40]}  Bxf5 {[%clk 0:02:32]} 15. Nd5 {[%clk 0:02:39]}  Qd7 {[%clk 0:02:11]} 16. Nxf6+ {[%clk 0:02:37]}  Kg7 {[%clk 0:02:07]} 17. Nxd7 {[%clk 0:02:38]}  f6 {[%clk 0:02:05]} 18. Bh6+ {[%clk 0:02:38]}  Kg6 {[%clk 0:01:58]} 19. Bxf8 {[%clk 0:02:35]}  Bxf2+ {[%clk 0:01:56]} 20. Rxf2 {[%clk 0:02:34]}  Bxd7 {[%clk 0:01:57]} 21. Qh6# {[%clk 0:02:34]} 1-0


[Site "https://www.chess.com"]

[Event "Titled Tuesday Blitz December 27 Early 2022"]
[White "Araujo, Everson De Moura"]
[Black "Fernandez Siles, Luis"]
[WhiteFideId "22737197"]
[BlackFideId "2209420"]
[WhiteElo "1944"]
[BlackElo "2218"]
[Result "0-1"]
[Round "04"]
[TimeControl "180+2"]
[Date "2022.12.27"]
[WhiteClock "0:00:44"]
[BlackClock "0:01:32"]

1. c4 {[%clk 0:03:00]}  Nf6 {[%clk 0:02:59]} 2. Nc3 {[%clk 0:03:00]}  g6 {[%clk 0:02:59]} 3. g3 {[%clk 0:03:00]}  Bg7 {[%clk 0:02:59]} 4. Bg2 {[%clk 0:03:01]}  O-O {[%clk 0:02:58]} 5. e4 {[%clk 0:03:01]}  d6 {[%clk 0:02:58]} 6. Nge2 {[%clk 0:03:02]}  c5 {[%clk 0:02:52]} 7. O-O {[%clk 0:03:01]}  Nc6 {[%clk 0:02:53]} 8. h3 {[%clk 0:03:01]}  Ne8 {[%clk 0:02:49]} 9. g4 {[%clk 0:02:51]}  Nc7 {[%clk 0:02:47]} 10. d3 {[%clk 0:02:48]}  Ne6 {[%clk 0:02:45]} 11. f4 {[%clk 0:02:47]}  Ned4 {[%clk 0:02:44]} 12. f5 {[%clk 0:02:45]}  Rb8 {[%clk 0:02:37]} 13. a4 {[%clk 0:02:38]}  a6 {[%clk 0:02:35]} 14. Kh1 {[%clk 0:02:32]}  b5 {[%clk 0:02:34]} 15. axb5 {[%clk 0:02:09]}  axb5 {[%clk 0:02:35]} 16. Rb1 {[%clk 0:01:59]}  bxc4 {[%clk 0:01:55]} 17. dxc4 {[%clk 0:02:00]}  Ne5 {[%clk 0:01:53]} 18. Nxd4 {[%clk 0:01:30]}  cxd4 {[%clk 0:01:53]} 19. Qxd4 {[%clk 0:01:27]}  Nxg4 {[%clk 0:01:52]} 20. Qd3 {[%clk 0:01:02]}  Ne5 {[%clk 0:01:51]} 21. Qe2 {[%clk 0:01:01]}  Ba6 {[%clk 0:01:40]} 22. Nb5 {[%clk 0:00:44]}  Nxc4 {[%clk 0:01:32]} 0-1


[Site "https://www.chess.com"]

[Event "Titled Tuesday Blitz December 27 Early 2022"]
[White "Atakhan, Abtin"]
[Black "Minko, Dmitry"]
[WhiteFideId "22502203"]
[BlackFideId "24188468"]
[WhiteElo "2422"]
[BlackElo "2247"]
[Result "1-0"]
[Round "04"]
[TimeControl "180+2"]
[Date "2022.12.27"]
[WhiteClock "0:00:06"]
[BlackClock "0:00:10"]

1. c4 {[%clk 0:03:00]}  e6 {[%clk 0:02:59]} 2. Nf3 {[%clk 0:02:59]}  d5 {[%clk 0:02:59]} 3. g3 {[%clk 0:02:59]}  Nf6 {[%clk 0:02:57]} 4. Bg2 {[%clk 0:03:00]}  dxc4 {[%clk 0:02:57]} 5. Qa4+ {[%clk 0:02:55]}  Nbd7 {[%clk 0:02:57]} 6. Qxc4 {[%clk 0:02:52]}  a6 {[%clk 0:02:57]} 7. O-O {[%clk 0:02:49]}  b5 {[%clk 0:02:57]} 8. Qb3 {[%clk 0:02:47]}  Bb7 {[%clk 0:02:56]} 9. d4 {[%clk 0:02:45]}  c5 {[%clk 0:02:56]} 10. Rd1 {[%clk 0:02:39]}  Rc8 {[%clk 0:02:53]} 11. Nc3 {[%clk 0:02:21]}  c4 {[%clk 0:02:44]} 12. Qc2 {[%clk 0:02:21]}  b4 {[%clk 0:02:45]} 13. Na4 {[%clk 0:02:20]}  Be4 {[%clk 0:02:41]} 14. Qd2 {[%clk 0:02:20]}  c3 {[%clk 0:02:14]} 15. bxc3 {[%clk 0:02:17]}  Qa5 {[%clk 0:02:13]} 16. Nc5 {[%clk 0:02:01]}  bxc3 {[%clk 0:02:11]} 17. Qe1 {[%clk 0:01:46]}  Nxc5 {[%clk 0:02:10]} 18. dxc5 {[%clk 0:01:47]}  Bxc5 {[%clk 0:02:02]} 19. Bg5 {[%clk 0:01:38]}  Nd5 {[%clk 0:01:55]} 20. Bh3 {[%clk 0:01:05]}  h6 {[%clk 0:01:35]} 21. Bc1 {[%clk 0:01:05]}  O-O {[%clk 0:01:30]} 22. Nd4 {[%clk 0:01:04]}  Qb4 {[%clk 0:01:13]} 23. Nb3 {[%clk 0:01:00]}  Ba7 {[%clk 0:01:09]} 24. Bg2 {[%clk 0:00:47]}  Bc2 {[%clk 0:01:02]} 25. Rxd5 {[%clk 0:00:37]}  exd5 {[%clk 0:01:02]} 26. Bxd5 {[%clk 0:00:37]}  Be4 {[%clk 0:00:55]} 27. Ba3 {[%clk 0:00:17]}  Qxa3 {[%clk 0:00:55]} 28. Bxe4 {[%clk 0:00:17]}  c2 {[%clk 0:00:51]} 29. Rc1 {[%clk 0:00:15]}  Qxa2 {[%clk 0:00:48]} 30. Bd5 {[%clk 0:00:09]}  Rb8 {[%clk 0:00:32]} 31. Qc3 {[%clk 0:00:05]}  Rfc8 {[%clk 0:00:15]} 32. Qf3 {[%clk 0:00:05]}  Qb1 {[%clk 0:00:13]} 33. Qxf7+ {[%clk 0:00:02]}  Kh8 {[%clk 0:00:14]} 34. Qf5 {[%clk 0:00:01]}  Rxb3 {[%clk 0:00:13]} 35. Qxc8+ {[%clk 0:00:01]}  Kh7 {[%clk 0:00:13]} 36. Qf5+ {[%clk 0:00:01]}  Kh8 {[%clk 0:00:12]} 37. Qc8+ {[%clk 0:00:02]}  Kh7 {[%clk 0:00:13]} 38. Be4+ {[%clk 0:00:03]}  g6 {[%clk 0:00:13]} 39. Qd7+ {[%clk 0:00:03]}  Kh8 {[%clk 0:00:12]} 40. Qe8+ {[%clk 0:00:04]}  Kg7 {[%clk 0:00:11]} 41. Qe7+ {[%clk 0:00:04]}  Kh8 {[%clk 0:00:10]} 42. Qf8+ {[%clk 0:00:05]}  Kh7 {[%clk 0:00:10]} 43. Qf7+ {[%clk 0:00:06]}  Kh8 {[%clk 0:00:11]} 44. Qf6+ {[%clk 0:00:05]}  Kg8 {[%clk 0:00:09]} 45. Bd5+ {[%clk 0:00:05]}  Kh7 {[%clk 0:00:09]} 46. Qf7+ {[%clk 0:00:06]}  Kh8 {[%clk 0:00:10]} 47. Qg8# {[%clk 0:00:06]} 1-0


[Site "https://www.chess.com"]

[Event "Titled Tuesday Blitz December 27 Early 2022"]
[White "Atakishiyev, Elmar"]
[Black "Makarian, Rudik"]
[WhiteFideId "13410547"]
[BlackFideId "44105681"]
[WhiteElo "2363"]
[BlackElo "2545"]
[Result "1-0"]
[Round "04"]
[TimeControl "180+2"]
[Date "2022.12.27"]
[WhiteClock "0:01:27"]
[BlackClock "0:01:26"]

1. Nf3 {[%clk 0:02:56]}  Nf6 {[%clk 0:02:58]} 2. g3 {[%clk 0:02:56]}  b5 {[%clk 0:02:58]} 3. Bg2 {[%clk 0:02:56]}  Bb7 {[%clk 0:02:58]} 4. O-O {[%clk 0:02:57]}  e6 {[%clk 0:02:56]} 5. d3 {[%clk 0:02:58]}  Be7 {[%clk 0:02:53]} 6. e4 {[%clk 0:02:57]}  d5 {[%clk 0:02:53]} 7. e5 {[%clk 0:02:57]}  Nfd7 {[%clk 0:02:53]} 8. Nbd2 {[%clk 0:02:57]}  c5 {[%clk 0:02:53]} 9. Re1 {[%clk 0:02:57]}  Nc6 {[%clk 0:02:54]} 10. Nf1 {[%clk 0:02:58]}  O-O {[%clk 0:02:47]} 11. h4 {[%clk 0:02:57]}  Qc7 {[%clk 0:02:45]} 12. Bf4 {[%clk 0:02:57]}  Rfc8 {[%clk 0:02:46]} 13. N1h2 {[%clk 0:02:57]}  Qd8 {[%clk 0:02:45]} 14. h5 {[%clk 0:02:56]}  h6 {[%clk 0:02:45]} 15. Ng4 {[%clk 0:02:56]}  Bf8 {[%clk 0:02:44]} 16. Qd2 {[%clk 0:02:48]}  a5 {[%clk 0:02:43]} 17. Bxh6 {[%clk 0:02:35]}  gxh6 {[%clk 0:02:43]} 18. Nxh6+ {[%clk 0:02:35]}  Bxh6 {[%clk 0:02:42]} 19. Qxh6 {[%clk 0:02:36]}  Qf8 {[%clk 0:02:37]} 20. Qf4 {[%clk 0:02:36]}  Nd4 {[%clk 0:02:36]} 21. h6 {[%clk 0:01:59]}  Nxc2 {[%clk 0:02:22]} 22. Ng5 {[%clk 0:01:57]}  Nxa1 {[%clk 0:02:18]} 23. h7+ {[%clk 0:01:53]}  Kg7 {[%clk 0:02:14]} 24. h8=Q+ {[%clk 0:01:53]}  Qxh8 {[%clk 0:01:57]} 25. Qxf7+ {[%clk 0:01:53]}  Kh6 {[%clk 0:01:57]} 26. Qxe6+ {[%clk 0:01:53]}  Nf6 {[%clk 0:01:44]} 27. Nf7+ {[%clk 0:01:51]}  Kh7 {[%clk 0:01:36]} 28. Nxh8 {[%clk 0:01:49]}  Ng8 {[%clk 0:01:31]} 29. Nf7 {[%clk 0:01:48]}  Nc2 {[%clk 0:01:30]} 30. Ng5+ {[%clk 0:01:37]}  Kh8 {[%clk 0:01:26]} 31. Qh3+ {[%clk 0:01:27]} 1-0


[Site "https://www.chess.com"]

[Event "Titled Tuesday Blitz December 27 Early 2022"]
[White "Avila Pavas, Santiago"]
[Black "Bok, Benjamin"]
[WhiteFideId "4437128"]
[BlackFideId "1017063"]
[WhiteElo "2522"]
[BlackElo "2607"]
[Result "0-1"]
[Round "04"]
[TimeControl "180+2"]
[Date "2022.12.27"]
[WhiteClock "0:00:04"]
[BlackClock "0:00:12"]

1. d4 {[%clk 0:03:00]}  Nf6 {[%clk 0:03:00]} 2. Nf3 {[%clk 0:03:01]}  d5 {[%clk 0:02:59]} 3. Bf4 {[%clk 0:03:01]}  c5 {[%clk 0:02:59]} 4. e3 {[%clk 0:03:01]}  Nc6 {[%clk 0:03:00]} 5. Nc3 {[%clk 0:03:01]}  Bg4 {[%clk 0:02:49]} 6. Be2 {[%clk 0:03:00]}  e6 {[%clk 0:02:43]} 7. Ne5 {[%clk 0:02:52]}  Bxe2 {[%clk 0:02:41]} 8. Nxe2 {[%clk 0:02:52]}  Qb6 {[%clk 0:02:35]} 9. O-O {[%clk 0:02:39]}  Be7 {[%clk 0:02:29]} 10. a3 {[%clk 0:02:17]}  cxd4 {[%clk 0:02:26]} 11. exd4 {[%clk 0:02:06]}  O-O {[%clk 0:02:10]} 12. b3 {[%clk 0:01:54]}  Rac8 {[%clk 0:02:06]} 13. Bg5 {[%clk 0:01:40]}  Qc7 {[%clk 0:01:33]} 14. Nf3 {[%clk 0:01:29]}  Ne4 {[%clk 0:01:31]} 15. Bf4 {[%clk 0:01:05]}  Bd6 {[%clk 0:01:28]} 16. Bxd6 {[%clk 0:01:05]}  Nxd6 {[%clk 0:01:29]} 17. Qd3 {[%clk 0:01:03]}  Ne7 {[%clk 0:01:28]} 18. Rfc1 {[%clk 0:01:01]}  h6 {[%clk 0:01:28]} 19. Ne5 {[%clk 0:01:00]}  b5 {[%clk 0:01:17]} 20. c3 {[%clk 0:00:53]}  a6 {[%clk 0:01:12]} 21. Ng3 {[%clk 0:00:53]}  Nc6 {[%clk 0:01:03]} 22. Nf3 {[%clk 0:00:52]}  Na5 {[%clk 0:00:59]} 23. Rab1 {[%clk 0:00:51]}  Qe7 {[%clk 0:00:52]} 24. h4 {[%clk 0:00:46]}  Rc7 {[%clk 0:00:51]} 25. Ne5 {[%clk 0:00:24]}  Qxh4 {[%clk 0:00:46]} 26. Rb2 {[%clk 0:00:23]}  Rfc8 {[%clk 0:00:44]} 27. Nf3 {[%clk 0:00:20]}  Qf4 {[%clk 0:00:41]} 28. Rcc2 {[%clk 0:00:20]}  Ne4 {[%clk 0:00:39]} 29. Ne2 {[%clk 0:00:20]}  Qf5 {[%clk 0:00:36]} 30. Rb1 {[%clk 0:00:12]}  Nxc3 {[%clk 0:00:30]} 31. Qxf5 {[%clk 0:00:08]}  exf5 {[%clk 0:00:30]} 32. Re1 {[%clk 0:00:04]}  Nxb3 {[%clk 0:00:26]} 33. Nf4 {[%clk 0:00:03]}  g5 {[%clk 0:00:19]} 34. Nh5 {[%clk 0:00:02]}  Ne4 {[%clk 0:00:20]} 35. Rxc7 {[%clk 0:00:01]}  Rxc7 {[%clk 0:00:21]} 36. Ne5 {[%clk 0:00:02]}  f6 {[%clk 0:00:19]} 37. Nd3 {[%clk 0:00:01]}  Nxd4 {[%clk 0:00:18]} 38. f3 {[%clk 0:00:01]}  Nc3 {[%clk 0:00:14]} 39. Nxf6+ {[%clk 0:00:01]}  Kf7 {[%clk 0:00:13]} 40. Ne8 {[%clk 0:00:02]}  Re7 {[%clk 0:00:13]} 41. Nd6+ {[%clk 0:00:02]}  Kf8 {[%clk 0:00:11]} 42. Rf1 {[%clk 0:00:02]}  Re6 {[%clk 0:00:10]} 43. Nb7 {[%clk 0:00:02]}  Ke7 {[%clk 0:00:10]} 44. Nbc5 {[%clk 0:00:02]}  Re3 {[%clk 0:00:10]} 45. Kf2 {[%clk 0:00:02]}  f4 {[%clk 0:00:10]} 46. Kg1 {[%clk 0:00:01]}  Nce2+ {[%clk 0:00:09]} 47. Kh2 {[%clk 0:00:02]}  Ng3 {[%clk 0:00:10]} 48. Kg1 {[%clk 0:00:02]}  Nxf1 {[%clk 0:00:09]} 49. Kxf1 {[%clk 0:00:03]}  Ne2 {[%clk 0:00:10]} 50. Kf2 {[%clk 0:00:03]}  Ng3 {[%clk 0:00:10]} 51. Nc1 {[%clk 0:00:03]}  Rc3 {[%clk 0:00:10]} 52. N5b3 {[%clk 0:00:03]}  Rc2+ {[%clk 0:00:10]} 53. Ke1 {[%clk 0:00:03]}  Kd6 {[%clk 0:00:11]} 54. Kd1 {[%clk 0:00:03]}  Rxg2 {[%clk 0:00:11]} 55. Nd4 {[%clk 0:00:03]}  Rg1+ {[%clk 0:00:11]} 56. Kc2 {[%clk 0:00:03]}  h5 {[%clk 0:00:12]} 57. Nd3 {[%clk 0:00:04]}  Rg2+ {[%clk 0:00:12]} 58. Kc3 {[%clk 0:00:04]}  h4 {[%clk 0:00:12]} 0-1


[Site "https://www.chess.com"]

[Event "Titled Tuesday Blitz December 27 Early 2022"]
[White "Babazada, Khazar"]
[Black "Tomb, Maroun"]
[WhiteFideId "13413554"]
[BlackFideId "5300398"]
[WhiteElo "2474"]
[BlackElo "2090"]
[Result "1/2-1/2"]
[Round "04"]
[TimeControl "180+2"]
[Date "2022.12.27"]
[WhiteClock "0:00:11"]
[BlackClock "0:00:14"]

1. e4 {[%clk 0:02:52]}  d6 {[%clk 0:02:57]} 2. d4 {[%clk 0:02:52]}  Nf6 {[%clk 0:02:57]} 3. Nc3 {[%clk 0:02:52]}  e5 {[%clk 0:02:57]} 4. Nf3 {[%clk 0:02:52]}  Nbd7 {[%clk 0:02:57]} 5. Be3 {[%clk 0:02:51]}  Be7 {[%clk 0:02:57]} 6. h3 {[%clk 0:02:50]}  c6 {[%clk 0:02:56]} 7. a4 {[%clk 0:02:50]}  Qc7 {[%clk 0:02:55]} 8. Bc4 {[%clk 0:02:51]}  h6 {[%clk 0:02:56]} 9. O-O {[%clk 0:02:46]}  Nf8 {[%clk 0:02:55]} 10. Nh4 {[%clk 0:02:44]}  Ne6 {[%clk 0:02:50]} 11. dxe5 {[%clk 0:02:43]}  dxe5 {[%clk 0:02:49]} 12. Nf5 {[%clk 0:02:43]}  O-O {[%clk 0:02:49]} 13. Qf3 {[%clk 0:02:36]}  Ng5 {[%clk 0:02:48]} 14. Bxg5 {[%clk 0:02:29]}  hxg5 {[%clk 0:02:47]} 15. Rad1 {[%clk 0:02:30]}  g6 {[%clk 0:02:38]} 16. Nxe7+ {[%clk 0:01:56]}  Qxe7 {[%clk 0:02:39]} 17. Rd2 {[%clk 0:01:56]}  g4 {[%clk 0:02:21]} 18. hxg4 {[%clk 0:01:52]}  Bxg4 {[%clk 0:02:21]} 19. Qe3 {[%clk 0:01:47]}  a6 {[%clk 0:02:16]} 20. f3 {[%clk 0:01:47]}  Be6 {[%clk 0:02:07]} 21. Bxe6 {[%clk 0:01:47]}  Qxe6 {[%clk 0:02:08]} 22. a5 {[%clk 0:01:47]}  Rad8 {[%clk 0:02:05]} 23. Rfd1 {[%clk 0:01:44]}  Rxd2 {[%clk 0:02:04]} 24. Rxd2 {[%clk 0:01:41]}  Kg7 {[%clk 0:02:03]} 25. b3 {[%clk 0:01:23]}  Rh8 {[%clk 0:02:01]} 26. Na4 {[%clk 0:01:23]}  Qe7 {[%clk 0:02:01]} 27. Qc5 {[%clk 0:01:21]}  Qc7 {[%clk 0:01:49]} 28. Nb6 {[%clk 0:01:20]}  Rh5 {[%clk 0:01:31]} 29. Rd6 {[%clk 0:01:16]}  Qe7 {[%clk 0:01:05]} 30. Nd7 {[%clk 0:01:16]}  Ng8 {[%clk 0:00:55]} 31. Rd1 {[%clk 0:00:24]}  Qh4 {[%clk 0:00:49]} 32. Qf8+ {[%clk 0:00:24]}  Kh8 {[%clk 0:00:45]} 33. Rf1 {[%clk 0:00:23]}  Qg3 {[%clk 0:00:27]} 34. Qd6 {[%clk 0:00:22]}  Kg7 {[%clk 0:00:20]} 35. Qf8+ {[%clk 0:00:15]}  Kh8 {[%clk 0:00:20]} 36. Qd6 {[%clk 0:00:16]}  Kg7 {[%clk 0:00:18]} 37. Qd2 {[%clk 0:00:16]}  Qh4 {[%clk 0:00:15]} 38. Qd6 {[%clk 0:00:11]}  Qg3 {[%clk 0:00:14]} 1/2-1/2


[Site "https://www.chess.com"]

[Event "Titled Tuesday Blitz December 27 Early 2022"]
[White "Barp, Alberto"]
[Black "Oparin, Grigoriy"]
[WhiteFideId "872555"]
[BlackFideId "24125890"]
[WhiteElo "2432"]
[BlackElo "2667"]
[Result "0-1"]
[Round "04"]
[TimeControl "180+2"]
[Date "2022.12.27"]
[WhiteClock "0:00:05"]
[BlackClock "0:00:16"]

1. d4 {[%clk 0:03:00]}  f5 {[%clk 0:02:59]} 2. e4 {[%clk 0:02:55]}  fxe4 {[%clk 0:02:59]} 3. Nc3 {[%clk 0:02:56]}  Nf6 {[%clk 0:02:57]} 4. Bg5 {[%clk 0:02:56]}  g6 {[%clk 0:02:55]} 5. f3 {[%clk 0:02:53]}  d5 {[%clk 0:02:55]} 6. fxe4 {[%clk 0:02:49]}  dxe4 {[%clk 0:02:56]} 7. Bc4 {[%clk 0:02:47]}  Bg7 {[%clk 0:02:51]} 8. Nge2 {[%clk 0:02:46]}  Nc6 {[%clk 0:02:47]} 9. Qd2 {[%clk 0:02:40]}  Na5 {[%clk 0:02:34]} 10. Bb3 {[%clk 0:02:29]}  Nxb3 {[%clk 0:02:33]} 11. axb3 {[%clk 0:02:30]}  O-O {[%clk 0:02:32]} 12. O-O-O {[%clk 0:02:23]}  a5 {[%clk 0:02:28]} 13. Ng3 {[%clk 0:02:16]}  Bf5 {[%clk 0:02:15]} 14. Rhf1 {[%clk 0:02:01]}  Qd7 {[%clk 0:02:15]} 15. d5 {[%clk 0:01:56]}  a4 {[%clk 0:02:10]} 16. bxa4 {[%clk 0:01:55]}  Rxa4 {[%clk 0:02:11]} 17. Nxa4 {[%clk 0:01:46]}  Qxa4 {[%clk 0:02:12]} 18. Qe3 {[%clk 0:01:26]}  Ng4 {[%clk 0:01:47]} 19. Qa3 {[%clk 0:01:19]}  Qxa3 {[%clk 0:00:50]} 20. bxa3 {[%clk 0:01:20]}  Nxh2 {[%clk 0:00:51]} 21. Rh1 {[%clk 0:01:01]}  Ng4 {[%clk 0:00:50]} 22. Nxf5 {[%clk 0:01:02]}  Rxf5 {[%clk 0:00:46]} 23. Bh4 {[%clk 0:00:48]}  e3 {[%clk 0:00:47]} 24. Rhe1 {[%clk 0:00:43]}  g5 {[%clk 0:00:24]} 25. Bg3 {[%clk 0:00:42]}  Nf2 {[%clk 0:00:23]} 26. Bxf2 {[%clk 0:00:22]}  exf2 {[%clk 0:00:24]} 27. Rf1 {[%clk 0:00:22]}  g4 {[%clk 0:00:25]} 28. g3 {[%clk 0:00:21]}  Be5 {[%clk 0:00:24]} 29. Rd3 {[%clk 0:00:20]}  h5 {[%clk 0:00:25]} 30. Kd2 {[%clk 0:00:16]}  h4 {[%clk 0:00:25]} 31. gxh4 {[%clk 0:00:13]}  g3 {[%clk 0:00:26]} 32. Ke2 {[%clk 0:00:09]}  Rf6 {[%clk 0:00:16]} 33. Rf3 {[%clk 0:00:05]}  g2 {[%clk 0:00:16]} 0-1


[Site "https://www.chess.com"]